bitfinex/quotes_ETHUSD_20251006
["timestamp","ask_amount","ask_price","bid_price","bid_amount"]
[1759761588588,8.65366755,4668.1,4668.0,0.001]
[1759761588754,9.28726755,4668.1,4668.0,0.001]
[1759761588951,9.74744686,4668.1,4668.0,0.001]
[1759761589376,9.32903152,4668.1,4668.0,0.001]
[1759761589858,2.14275,4666.9,4666.8,0.001]
[1759761590054,4.57975,4666.9,4666.8,0.001]
[1759761590584,5.04795,4666.9,4666.8,0.001]
[1759761590789,5.50901185,4666.9,4666.8,0.001]
[1759761591293,2.1434125,4665.5,4664.7,2.1437538]
[1759761591584,5.50901185,4666.9,4664.7,0.34505472]
[1759761591585,2.14353579,4665.2,4664.7,0.34505472]
[1759761591792,2.437,4666.0,4664.4,4.54385711]
[1759761591793,2.437,4666.0,4664.4,2.4]
[1759761591966,2.14352318,4665.3,4664.6,2.4]
[1759761592279,2.14320924,4665.9,4664.6,0.33427282]
[1759761592588,2.14358285,4665.1,4663.6,0.27936384]
[1759761592769,0.45802092,4665.9,4664.1,1.013]
[1759761592999,0.45802092,4665.9,4664.5,2.4]
[1759761593000,2.14336358,4665.6,4664.5,2.4]
[1759761593199,2.437,4666.0,4664.6,2.14376783]
[1759761593405,2.14343367,4665.5,4664.5,0.34699342]
[1759761593612,2.437,4666.2,4664.2,2.4]
[1759761593905,2.437,4666.2,4664.2,32.74059911]
[1759761594117,2.437,4666.2,4664.4,2.4]
[1759761594118,2.14356619,4665.2,4664.4,2.4]
[1759761594302,2.14356619,4665.2,4664.3,9.14842902]
[1759761594512,2.14356619,4665.2,4664.5,2.4]
[1759761594694,2.14356619,4665.2,4664.4,32.14388386]
[1759761594695,2.437,4666.2,4664.3,4.836]
[1759761594900,2.14348727,4665.3,4664.5,4.54384427]
[1759761595212,2.437,4666.2,4664.6,2.14380654]
[1759761595606,2.437,4666.2,4664.3,4.836]
[1759761595804,2.437,4666.2,4664.5,2.4]
[1759761596004,2.14311737,4666.1,4664.4,2.91759189]
[1759761596204,2.437,4666.2,4664.6,2.14379557]
[1759761596205,2.14347462,4665.4,4664.6,2.14379557]
[1759761596416,2.437,4666.2,4664.5,2.436]
[1759761596618,2.14311737,4666.1,4664.4,0.51759189]
[1759761596806,2.14352459,4665.3,4664.4,4.57985817]
[1759761597007,0.50483174,4666.0,4664.4,2.436]
[1759761597305,2.14311737,4666.1,4664.4,4.836]
[1759761597507,2.14352005,4665.3,4664.4,6.97986565]
[1759761597702,2.14320924,4665.9,4664.2,0.33991886]
[1759761597903,2.14356625,4665.2,4664.5,4.57984986]
[1759761598097,2.14354809,4665.2,4664.5,4.836]
[1759761598311,2.14341453,4665.5,4664.5,2.436]
[1759761598498,2.14337109,4665.6,4664.8,2.14371362]
[1759761598703,2.77623676,4667.2,4664.7,2.14376058]
[1759761598893,0.4682,4666.9,4665.0,2.1435918]
[1759761599091,2.14326412,4665.8,4665.0,2.1435918]
[1759761599389,2.14312239,4666.1,4664.6,2.4]
[1759761599590,0.4682,4667.5,4665.5,2.14334807]
[1759761599786,0.002,4668.7,4666.0,0.1072]
[1759761599787,2.14311293,4666.2,4666.0,0.1072]
[1759761599990,0.1072,4666.6,4666.0,0.1072]
[1759761600208,2.14311737,4666.1,4666.0,0.1072]
[1759761600620,2.14335973,4665.6,4664.3,0.6336]
[1759761600849,2.14288775,4666.6,4664.5,2.4]
[1759761601134,2.14343893,4665.4,4665.3,0.1072]
[1759761601340,2.14343893,4665.4,4664.6,1.2799996]
[1759761601341,2.14339299,4665.5,4664.0,2.438]
[1759761601635,0.1072,4665.4,4664.6,0.1072]
[1759761601799,2.14362527,4665.0,4664.6,0.1072]
[1759761602000,0.1072,4665.4,4664.6,0.1072]
[1759761602197,2.438,4665.9,4664.2,2.4]
[1759761602422,0.1072,4665.7,4665.1,0.1072]
[1759761602725,0.2438,4665.8,4664.3,2.14393142]
[1759761602726,0.2438,4665.8,4664.5,2.14384672]
[1759761602904,2.14338821,4665.6,4665.5,0.1072]
[1759761603307,2.14359114,4665.1,4664.1,0.34316632]
[1759761603520,2.1433604,4665.6,4665.2,0.1072]
[1759761603707,0.1072,4666.1,4665.0,0.1072]
[1759761603917,2.14349348,4665.3,4665.0,0.1072]
[1759761604233,0.1072,4666.1,4665.0,0.1072]
[1759761604430,2.14320924,4665.9,4665.0,0.1072]
[1759761604630,2.14344317,4665.4,4665.0,0.1072]
[1759761605135,2.14357677,4665.1,4665.0,0.1072]
[1759761605903,0.4483,4665.7,4664.5,2.438]
[1759761605904,0.1072,4665.4,4664.5,2.438]
[1759761606104,2.14367973,4664.9,4664.7,0.1072]
[1759761606423,0.1072,4665.4,4664.7,0.1072]
[1759761606609,2.14366916,4664.9,4664.7,0.1072]
[1759761606936,2.14362886,4665.0,4664.7,0.1072]
[1759761607133,2.14348487,4665.3,4664.7,0.1072]
[1759761607134,0.1072,4665.4,4664.7,0.1072]
[1759761607307,2.14371462,4664.8,4664.7,0.1072]
[1759761607503,0.4483,4665.3,4663.9,2.437]
[1759761607704,0.1072,4664.5,4663.8,0.1072]
[1759761607915,2.1441283,4663.9,4663.8,0.1072]
[1759761608321,2.14426623,4663.6,4663.5,0.1082]
[1759761608633,0.1072,4664.2,4663.5,0.1082]
[1759761608834,2.14426623,4663.6,4663.5,0.1082]
[1759761609258,3.02141157,4663.6,4663.5,0.001]
[1759761609456,3.12861157,4663.6,4663.5,0.001]
[1759761610123,2.68031157,4663.6,4663.5,0.001]
[1759761610316,2.25146623,4663.6,4663.5,0.001]
[1759761610525,0.4483,4664.4,4663.5,0.001]
[1759761610844,2.14380654,4664.6,4663.5,0.001]
[1759761611041,0.1072,4664.2,4663.6,0.1072]
[1759761611557,2.14384942,4664.6,4663.5,0.001]
[1759761611558,2.14426623,4663.6,4663.5,0.001]
[1759761611725,2.57311247,4663.6,4663.5,0.001]
[1759761611927,3.02141247,4663.6,4663.5,0.001]
[1759761613124,2.57311247,4663.6,4663.5,0.001]
[1759761613527,3.02141247,4663.6,4663.5,0.001]
[1759761615848,3.02141247,4663.6,4662.5,0.001]
[1759761615849,0.87714624,4663.6,4662.5,0.001]
[1759761616047,2.14462555,4662.9,4662.5,0.001]
[1759761616230,0.46034864,4663.5,4662.5,0.001]
[1759761616436,2.439,4663.9,4662.5,0.001]
[1759761616649,2.14449121,4663.2,4662.5,0.001]
[1759761616848,2.14403636,4664.1,4662.5,0.001]
[1759761617057,0.4483,4664.2,4662.5,0.001]
[1759761617261,0.4483,4664.7,4662.5,0.001]
[1759761617564,2.44,4665.0,4663.2,2.14443764]
[1759761617738,3.13713,4664.9,4662.5,0.001]
[1759761618072,2.14434927,4663.5,4662.5,0.001]
[1759761618279,4.84,4664.3,4662.5,0.001]
[1759761618434,2.14399039,4664.2,4662.5,0.001]
[1759761618628,0.4483,4664.2,4662.5,0.001]
[1759761618833,2.14431798,4663.5,4662.5,2.401]
[1759761619052,2.14431798,4663.5,4662.8,2.4]
[1759761619252,2.14426627,4663.6,4662.8,2.4]
[1759761619457,2.14431386,4663.5,4662.8,2.4]
[1759761620063,2.14427283,4663.6,4662.8,4.54463335]
[1759761620259,2.14427283,4663.6,4662.9,0.74403132]
[1759761620438,2.1438525,4664.5,4662.9,0.74403132]
[1759761620637,0.4483,4664.4,4662.9,0.74403132]
[1759761620848,0.4483,4664.4,4662.7,0.45467989]
[1759761621032,0.4483,4664.3,4662.6,0.001]
[1759761621228,2.14403636,4664.1,4662.6,0.001]
[1759761621564,0.6336,4663.0,4661.8,0.001]
[1759761621769,2.14486412,4662.3,4661.8,0.001]
[1759761622063,2.14504815,4661.9,4661.8,0.001]
[1759761622265,2.81824858,4661.9,4661.8,0.001]
[1759761622565,2.14606491,4659.7,4658.7,0.001]
[1759761622870,2.1451862,4661.6,4658.7,0.001]
[1759761622871,2.14599681,4659.9,4658.8,32.443]
[1759761623067,2.14559516,4660.8,4659.2,2.14628841]
[1759761623366,0.4483,4661.3,4659.3,4.690204]
[1759761623538,2.14537029,4661.2,4659.4,14.35692262]
[1759761623735,0.4483,4661.3,4659.5,10.578704]
[1759761623952,0.4483,4661.3,4659.5,2.14714321]
[1759761624169,0.67320043,4661.9,4659.4,0.6336]
[1759761624358,2.14546497,4661.0,4659.8,2.14599864]
[1759761624667,0.4483,4661.6,4659.9,0.45569986]
[1759761624967,2.14581254,4660.3,4659.5,0.6346]
[1759761625171,0.4483,4660.4,4658.2,1.13058564]
[1759761625469,0.4483,4660.3,4658.3,2.63383]
[1759761625668,2.14550837,4660.9,4658.6,2.14655783]
[1759761625839,0.4483,4660.8,4658.7,6.587756]
[1759761626038,0.1072,4660.9,4660.0,0.1072]
[1759761626237,0.1072,4660.9,4660.0,2.5512]
[1759761626469,2.1458403,4660.2,4660.0,2.5512]
[1759761626766,2.59363958,4661.3,4660.0,2.69912]
[1759761626939,2.14533958,4661.3,4660.0,2.444]
[1759761627140,2.14579512,4660.3,4660.0,2.444]
[1759761627439,2.14587669,4660.1,4660.0,2.444]
[1759761627660,2.14587669,4660.1,4658.4,0.264383]
[1759761627661,2.14601968,4659.8,4658.7,0.6336]
[1759761627970,2.14601968,4659.8,4658.6,2.401]
[1759761627971,2.14550384,4661.0,4658.9,33.0796]
[1759761628174,2.8503,4661.8,4659.8,2.14598907]
[1759761628338,2.8503,4661.8,4659.9,2.445]
[1759761628673,0.4503,4661.8,4659.9,2.445]
[1759761628835,2.59540123,4661.8,4659.9,2.445]
[1759761629038,2.14555124,4660.9,4659.9,4.59096802]
[1759761629265,2.14542299,4661.1,4660.1,2.14586611]
[1759761629467,2.1457331,4660.5,4660.0,0.4591968]
[1759761629652,0.4483,4661.3,4659.3,0.001]
[1759761629653,2.14537029,4661.2,4660.1,2.445]
[1759761629840,0.4483,4661.3,4660.1,2.445]
[1759761630043,2.14569239,4660.6,4660.1,2.445]
[1759761630471,2.14555762,4660.8,4660.1,2.445]
[1759761630669,0.4483,4661.3,4660.1,2.445]
[1759761630873,0.4483,4661.2,4658.8,0.001]
[1759761631063,2.14606796,4659.7,4659.0,2.4]
[1759761631261,2.1460623,4659.7,4659.0,2.4]
[1759761631460,2.14601074,4659.9,4659.0,2.4]
[1759761631763,2.14603636,4659.8,4659.1,2.445]
[1759761632071,2.14514018,4661.7,4659.1,2.4]
[1759761632247,2.14610728,4659.6,4659.1,0.26157537]
[1759761632448,2.14606088,4659.8,4659.2,2.445]
[1759761632770,0.4483,4660.3,4658.8,0.001]
[1759761632953,0.4483,4660.3,4658.9,30.0]
[1759761633150,2.14541366,4661.2,4659.0,2.445]
[1759761633151,2.14625703,4659.3,4659.0,2.445]
[1759761633488,2.14636028,4659.1,4658.8,0.001]
[1759761633641,2.40686946,4659.1,4658.8,0.001]
[1759761633954,2.14634343,4659.1,4658.8,0.001]
[1759761634352,2.14642941,4658.9,4658.8,0.001]
[1759761634892,0.4589,4659.5,4658.8,0.001]
[1759761635043,0.4589,4660.0,4658.9,2.445]
[1759761635240,2.14633446,4659.2,4658.9,2.445]
[1759761635481,2.14635323,4659.1,4658.9,2.6896]
[1759761635680,2.14633727,4659.1,4659.0,2.445]
[1759761635886,2.14633727,4659.1,4658.8,0.001]
[1759761636046,0.4279,4659.0,4658.8,0.001]
[1759761636352,2.14642941,4658.9,4658.8,0.001]
[1759761636552,3.15359608,4658.9,4658.8,0.001]
[1759761637644,0.5351,4658.9,4658.8,0.001]
[1759761637984,2.68152941,4658.9,4658.8,0.001]
[1759761639387,2.57432941,4658.9,4658.8,0.001]
[1759761641086,5.01932941,4658.9,4658.8,0.001]
[1759761641657,0.6336,4658.4,4657.9,0.001]
[1759761641883,2.14684413,4658.0,4657.9,0.001]
[1759761644678,2.57474413,4658.0,4657.9,0.001]
[1759761645359,2.14684413,4658.0,4657.9,0.001]
[1759761646101,2.57474413,4658.0,4657.9,0.001]
[1759761646601,2.14684413,4658.0,4657.9,0.001]
[1759761647004,0.4279,4659.2,4657.9,0.001]
[1759761647207,2.14684413,4658.0,4657.9,0.001]
[1759761647407,2.14642941,4658.9,4657.9,0.001]
[1759761647707,0.214631,4659.1,4657.9,0.001]
[1759761647874,2.14638334,4659.0,4657.9,0.001]
[1759761648074,2.14676343,4658.2,4657.9,0.001]
[1759761648300,2.14680128,4658.1,4657.9,0.001]
[1759761648498,2.14678278,4658.2,4657.9,0.001]
[1759761648697,2.14684413,4658.0,4657.9,0.001]
[1759761649276,2.14684413,4658.0,4657.9,0.1082]
[1759761649477,2.14684413,4658.0,4657.9,0.001]
[1759761651104,2.14604413,4658.0,4657.9,0.001]
[1759761652476,2.8279,4659.4,4657.9,0.1082]
[1759761652477,0.1072,4659.1,4657.9,0.1082]
[1759761652678,2.14681412,4658.1,4657.9,0.001]
[1759761652873,2.1467216,4658.3,4657.9,0.001]
[1759761653079,2.14661371,4658.5,4658.4,0.1072]
[1759761653616,0.1072,4659.1,4658.4,0.1072]
[1759761653790,2.14661371,4658.5,4658.4,0.1072]
[1759761653991,4.5457898,4660.3,4658.4,2.448]
[1759761653992,0.4279,4660.1,4658.4,2.448]
[1759761654191,2.14633727,4659.1,4659.0,0.1072]
[1759761654509,2.57423727,4659.1,4659.0,0.1072]
[1759761654689,2.14684413,4658.0,4657.9,0.001]
[1759761655712,0.1072,4658.4,4657.9,0.001]
[1759761655916,2.1465686,4658.6,4658.1,0.1072]
[1759761656213,2.14675196,4658.2,4658.1,0.1072]
[1759761656511,2.14656763,4658.6,4658.5,0.1072]
[1759761656713,2.14656763,4658.6,4658.1,0.25542]
[1759761656714,0.4279,4659.5,4658.1,0.36262]
[1759761657014,2.14649122,4658.8,4658.5,0.1072]
[1759761657228,2.14643954,4658.9,4658.8,0.1072]
[1759761657510,2.14624514,4659.3,4658.8,0.1072]
[1759761657711,2.14642941,4658.9,4658.8,0.1072]
[1759761658290,2.14665979,4658.4,4658.3,2.445]
[1759761658714,2.1467141,4658.3,4658.1,2.445]
[1759761658914,2.14658061,4658.6,4658.3,0.1072]
[1759761659090,0.4279,4659.2,4658.3,0.1072]
[1759761659291,0.4279,4659.8,4658.9,0.1072]
[1759761659485,2.25326504,4659.7,4658.9,0.1072]
[1759761659685,2.14638334,4659.0,4658.9,0.1072]
[1759761660184,0.4279,4659.0,4658.6,0.1072]
[1759761660385,0.4279,4659.0,4657.4,0.001]
[1759761660386,2.14684413,4658.0,4657.9,0.1082]
[1759761660599,2.445,4659.3,4657.9,0.1082]
[1759761660600,0.4279,4658.3,4657.9,0.1082]
[1759761660995,2.14670448,4658.4,4657.9,0.1082]
[1759761661203,2.1460813,4659.7,4658.2,0.1072]
[1759761661204,0.1072,4659.0,4658.2,0.1072]
[1759761661501,0.1072,4659.0,4657.9,0.001]
[1759761661502,2.14624514,4659.3,4657.9,0.001]
[1759761661709,2.14653798,4658.7,4658.0,0.21489331]
[1759761661912,0.4279,4659.9,4658.0,0.21789331]
[1759761662115,2.14630504,4659.2,4658.2,2.4]
[1759761662310,0.4279,4659.9,4658.4,2.14662443]
[1759761662631,2.14629661,4659.2,4658.5,2.14659384]
[1759761662945,0.4279,4660.5,4658.7,2.4]
[1759761663135,0.002,4659.0,4658.7,2.4]
[1759761663342,0.002,4659.0,4658.9,2.14639116]
[1759761663642,0.002,4659.0,4658.9,15.52572716]
[1759761663818,0.002,4659.0,4658.9,14.15451178]
[1759761664135,0.002,4659.0,4658.9,6.85592478]
[1759761664309,0.002,4659.0,4658.9,4.844]
[1759761664510,2.14838334,4659.0,4658.9,2.4]
[1759761664709,0.002,4659.0,4658.9,2.4]
[1759761665122,0.002,4659.0,4658.9,7.00742941]
[1759761665322,0.002,4659.0,4658.9,12.54968341]
[1759761665553,0.002,4659.0,4658.9,6.31361813]
[1759761665701,0.002,4659.0,4658.9,4.844]
[1759761665907,0.002,4659.0,4658.9,6.99042941]
[1759761667216,0.002,4659.0,4658.9,4.844]
[1759761667637,0.002,4659.0,4657.9,0.001]
[1759761667638,0.4674,4659.0,4657.9,0.001]
[1759761667940,2.14684413,4658.0,4657.9,0.001]
[1759761668148,0.4674,4659.0,4657.9,0.001]
[1759761668459,0.4674,4659.0,4658.0,0.123]
[1759761669121,2.14669834,4658.4,4658.0,0.123]
[1759761669320,2.14648881,4658.8,4658.0,0.123]
[1759761669516,0.4674,4659.0,4658.0,0.123]
[1759761670034,2.14642941,4658.9,4658.0,0.123]
[1759761670237,0.4674,4659.0,4658.0,0.123]
[1759761670449,2.1464833,4658.8,4658.0,0.35019356]
[1759761670650,0.4674,4659.0,4658.0,0.123]
[1759761670824,2.14660491,4658.6,4658.0,0.123]
[1759761671029,0.4674,4659.0,4658.0,0.123]
[1759761671230,2.14657661,4658.6,4658.0,0.123]
[1759761671530,0.4674,4659.0,4658.7,0.1072]
[1759761671729,2.14665644,4658.5,4658.0,0.123]
[1759761672127,2.14665644,4658.5,4658.4,0.1072]
[1759761672328,0.002,4659.0,4658.4,0.1072]
[1759761672728,0.002,4659.0,4658.9,0.1072]
[1759761672929,2.14838334,4659.0,4658.9,0.1072]
[1759761673151,2.61378334,4659.0,4658.9,0.1072]
[1759761673333,0.4674,4659.0,4657.9,0.001]
[1759761673531,2.14647548,4658.8,4658.7,0.1072]
[1759761673736,0.4654,4658.8,4658.7,0.1072]
[1759761673921,2.14647548,4658.8,4658.7,0.1072]
[1759761674128,2.14643356,4658.9,4658.7,0.1072]
[1759761674333,2.14647548,4658.8,4658.7,0.1072]
[1759761674855,0.002,4659.0,4658.7,0.1072]
[1759761675023,2.14647548,4658.8,4658.7,0.1072]
[1759761675630,2.14567548,4658.8,4658.7,0.1072]
[1759761675838,2.61107548,4658.8,4658.7,0.1072]
[1759761676343,0.002,4659.0,4657.9,0.585]
[1759761676549,2.14684413,4658.0,4657.9,1.699]
[1759761676862,0.4654,4658.5,4657.9,1.699]
[1759761677030,0.4654,4658.5,4657.9,1.8062]
[1759761677031,2.14684413,4658.0,4657.9,1.8062]
[1759761677234,2.14672034,4658.3,4657.9,1.8062]
[1759761677537,2.14661414,4658.5,4658.2,0.1072]
[1759761677731,0.1092,4659.0,4658.2,0.1072]
[1759761678050,2.14666499,4658.4,4658.2,0.1072]
[1759761678459,2.14670587,4658.3,4658.2,0.1072]
[1759761678837,2.14666798,4658.4,4658.2,0.1072]
[1759761679037,0.5746,4659.0,4658.2,0.1072]
[1759761679284,2.14670587,4658.3,4658.2,0.1072]
[1759761680376,0.4654,4658.6,4658.2,0.1072]
[1759761680557,0.1092,4659.0,4658.2,0.1072]
[1759761680955,2.14670042,4658.4,4658.2,0.1072]
[1759761681273,0.4654,4658.9,4658.2,0.1072]
[1759761681274,2.61210587,4658.3,4658.2,0.1072]
[1759761681448,2.14679636,4658.2,4658.0,0.001]
[1759761681638,2.14676088,4658.2,4658.0,0.1082]
[1759761681840,0.5726,4658.6,4658.0,0.1082]
[1759761682046,2.61219805,4658.1,4658.0,0.001]
[1759761682271,3.08809095,4658.1,4658.0,0.001]
[1759761682570,2.61219805,4658.1,4658.0,0.001]
[1759761683556,2.14679805,4658.1,4658.0,0.001]
[1759761684061,2.61219805,4658.1,4658.0,0.001]
[1759761684455,2.14684413,4658.0,4657.9,0.001]
[1759761684952,2.61224413,4658.0,4657.9,0.001]
[1759761685161,3.30282019,4658.0,4657.9,0.001]
[1759761686763,5.74782019,4658.0,4657.9,0.001]
[1759761687293,5.74782019,4658.0,4656.2,0.01]
[1759761687294,2.14746323,4656.7,4656.2,0.01]
[1759761687784,0.4654,4657.5,4656.2,0.01]
[1759761687956,2.14712071,4657.4,4656.2,0.01]
[1759761688157,2.40837278,4657.4,4656.2,0.01]
[1759761688483,2.40837278,4657.4,4655.8,0.004]
[1759761688484,0.4654,4657.3,4655.8,2.448]
[1759761688889,2.14759372,4656.4,4655.8,2.448]
[1759761689184,2.14755797,4656.5,4655.8,2.447]
[1759761689388,0.4654,4657.3,4655.8,4.847]
[1759761689685,2.14730513,4657.0,4655.9,3.09949001]
[1759761689888,2.14769315,4656.2,4655.9,3.09949001]
[1759761690091,2.14776632,4656.0,4655.9,0.69949001]
[1759761690276,2.14776632,4656.0,4654.4,1.50387328]
[1759761690277,2.447,4657.0,4654.3,1.50387328]
[1759761690584,2.14787397,4655.8,4654.9,2.14826791]
[1759761690784,2.14787397,4655.8,4655.0,2.447]
[1759761690785,2.1478642,4655.8,4655.0,2.447]
[1759761690978,2.1478642,4655.8,4655.0,4.59522247]
[1759761691288,0.4654,4656.4,4655.1,0.45952225]
[1759761691470,2.14791975,4655.7,4654.9,2.4]
[1759761691785,2.14791975,4655.7,4654.1,0.6336]
[1759761691786,2.14805162,4655.4,4654.0,0.004]
[1759761691984,2.14798968,4655.6,4654.1,7.773469]
[1759761692156,0.4654,4656.4,4654.3,3.0336]
[1759761692358,2.4,4657.5,4653.2,0.24444938]
[1759761692359,2.14767406,4656.2,4653.2,0.24444938]
[1759761692561,2.14853965,4654.4,4653.2,0.53504722]
[1759761692765,2.14832198,4654.8,4653.3,15.787088]
[1759761692983,0.4654,4655.4,4653.3,0.004]
[1759761693192,0.56936741,4656.1,4653.4,6.13556]
[1759761693386,0.4567,4656.0,4654.1,2.1485973]
[1759761693686,2.1480737,4655.4,4654.3,2.4]
[1759761693864,2.14793047,4655.7,4654.3,2.4]
[1759761693865,2.14809744,4655.3,4655.1,0.1072]
[1759761694067,0.1072,4655.7,4655.1,0.1072]
[1759761694268,2.14801593,4655.5,4655.1,0.1072]
[1759761694480,2.14813541,4655.2,4655.1,0.1072]
[1759761694792,2.14813541,4655.2,4653.3,2.4]
[1759761694793,0.9319886,4655.2,4653.2,2.69040299]
[1759761694994,2.14878164,4653.8,4653.7,0.1072]
[1759761695197,2.14915869,4653.0,4651.6,1.50787328]
[1759761695368,0.1072,4653.7,4652.9,0.1072]
[1759761695369,0.4567,4653.4,4652.9,0.1072]
[1759761695568,0.1072,4653.7,4652.9,0.1072]
[1759761695569,2.14915108,4653.0,4652.9,0.1072]
[1759761695786,2.61375108,4653.0,4652.9,0.1072]
[1759761695968,2.61375108,4653.0,4651.0,3.65390934]
[1759761695969,2.1492671,4652.8,4652.5,0.1072]
[1759761696173,2.14962458,4652.0,4651.4,1.319]
[1759761696376,2.14962458,4652.0,4651.5,0.18482507]
[1759761696599,0.4646,4652.5,4651.9,0.1072]
[1759761696763,0.4646,4652.4,4650.9,0.5384285]
[1759761696962,0.4646,4652.4,4649.9,0.004]
[1759761696963,2.1496236,4652.0,4650.4,2.447]
[1759761697195,2.14953795,4652.2,4650.5,5.184272]
[1759761697398,14.18460321,4653.8,4650.5,5.184272]
[1759761697399,0.4646,4652.9,4650.6,0.7671272]
[1759761697561,0.4646,4652.9,4650.7,14.520371]
[1759761697768,0.6336,4654.6,4650.7,14.520371]
[1759761697769,0.4646,4652.8,4651.0,2.15007172]
[1759761697980,0.4646,4652.8,4651.4,2.14984418]
[1759761698206,0.4646,4652.8,4650.9,2.15012148]
[1759761698207,0.4646,4653.3,4650.9,2.78371031]
[1759761698499,0.4646,4653.3,4650.6,0.98494863]
[1759761698500,0.4646,4653.2,4651.0,0.51837103]
[1759761698704,2.14962698,4652.0,4651.1,2.447]
[1759761698904,0.4646,4653.2,4651.1,2.447]
[1759761698905,0.4646,4653.2,4651.3,2.4]
[1759761699137,2.14929827,4652.7,4651.3,2.4]
[1759761699307,0.4646,4653.0,4651.4,2.447]
[1759761699493,0.4646,4653.0,4651.5,2.85969813]
[1759761699709,2.14919727,4652.9,4651.5,2.85969813]
[1759761699916,0.4646,4653.5,4651.6,0.6376]
[1759761700231,2.14915251,4653.0,4652.0,2.14961104]
[1759761700416,0.4638,4653.5,4651.6,2.78737933]
[1759761700721,0.4638,4653.5,4651.9,2.1496508]
[1759761701015,2.447,4654.3,4651.8,2.4]
[1759761701190,2.14915311,4653.0,4652.1,4.54956615]
[1759761701392,2.14915311,4653.0,4652.1,2.4]
[1759761701593,2.447,4654.3,4652.1,2.4]
[1759761701922,2.87967485,4654.3,4652.2,0.69966122]
[1759761702140,2.14902286,4653.3,4652.3,2.14946946]
[1759761702427,0.4646,4653.7,4652.4,2.447]
[1759761702631,0.6336,4655.0,4652.5,2.447]
[1759761702632,0.4646,4654.2,4652.5,2.447]
[1759761702833,2.14864313,4654.1,4652.6,2.4]
[1759761702995,0.4646,4654.0,4652.7,2.448]
[1759761703428,2.1490935,4653.2,4652.7,2.448]
[1759761703839,0.4646,4653.7,4652.7,2.448]
[1759761703993,0.4646,4654.4,4652.7,2.448]
[1759761704198,0.26130516,4654.3,4652.7,2.448]
[1759761704430,0.72590516,4654.3,4652.7,2.448]
[1759761704731,0.72590516,4654.3,4652.4,0.0048]
[1759761704897,2.14892502,4653.5,4652.5,4.59838205]
[1759761705102,2.14892502,4653.5,4652.1,0.6336]
[1759761705103,2.14908091,4653.2,4652.1,2.14955579]
[1759761705431,2.14936423,4652.6,4651.4,0.0048]
[1759761705726,0.4646,4652.8,4651.6,2.449]
[1759761705909,0.4646,4652.8,4651.7,2.449]
[1759761706094,2.14945446,4652.4,4651.8,2.449]
[1759761706294,2.14934023,4652.6,4651.8,2.449]
[1759761706500,2.14948019,4652.3,4651.9,2.449]
[1759761707026,0.1072,4652.7,4652.0,0.1072]
[1759761707237,0.1072,4652.7,4652.0,2.5072]
[1759761707434,2.14956686,4652.1,4650.3,0.0048]
[1759761707733,0.1072,4652.2,4651.5,0.1072]
[1759761708031,2.14969858,4651.9,4651.6,2.449]
[1759761708199,0.1072,4652.2,4651.6,2.4]
[1759761708396,0.1072,4652.4,4651.8,2.5072]
[1759761708595,0.1072,4652.7,4652.0,0.1072]
[1759761708810,0.1072,4652.7,4651.7,4.59875038]
[1759761708811,0.4646,4653.1,4651.7,2.449]
[1759761709144,2.14938205,4652.5,4652.4,0.1072]
[1759761709441,0.4646,4652.5,4650.1,2.464]
[1759761709736,2.464,4652.6,4648.0,5.80329134]
[1759761709737,0.4646,4652.4,4650.6,0.1072]
[1759761709894,2.15011668,4651.0,4650.6,0.1072]
[1759761710214,0.4646,4651.0,4650.6,0.1072]
[1759761710420,0.5718,4651.4,4650.6,0.1072]
[1759761710595,2.15021394,4650.7,4650.6,0.1072]
[1759761710996,2.15021394,4650.7,4648.6,0.11216249]
[1759761710997,2.1503277,4650.5,4649.9,0.605]
[1759761711192,2.15039889,4650.3,4650.2,0.1072]
[1759761711428,2.15049375,4650.1,4649.8,2.23]
[1759761711612,0.1072,4650.8,4650.0,0.1072]
[1759761711613,2.15045215,4650.2,4650.0,0.1072]
[1759761711799,2.15021394,4650.7,4650.0,0.1072]
[1759761712001,0.4646,4650.9,4650.0,0.0572]
[1759761712227,0.5718,4650.9,4650.3,0.1072]
[1759761712404,0.4646,4650.9,4649.9,2.471]
[1759761712900,0.4646,4650.9,4650.0,2.47]
[1759761713103,2.15035753,4650.4,4649.6,0.54924518]
[1759761713310,0.4646,4650.9,4649.3,2.4]
[1759761713520,0.4646,4651.3,4649.5,2.4]
[1759761713714,0.4646,4651.3,4649.4,2.30596]
[1759761713715,0.4646,4651.2,4649.6,6.02284]
[1759761713916,2.15002902,4651.1,4649.8,2.15058643]
[1759761714235,2.14971042,4651.8,4649.8,2.15058643]
[1759761714236,0.4646,4651.8,4650.0,2.4]
[1759761714400,0.4646,4651.8,4649.8,0.0048]
[1759761714603,2.14988348,4651.5,4650.4,2.15033984]
[1759761714820,2.473,4652.8,4650.6,2.4]
[1759761715021,2.61408595,4652.3,4650.7,2.73526]
[1759761715220,0.4646,4653.0,4650.9,0.6336]
[1759761715442,2.1494471,4652.4,4651.5,2.14983169]
[1759761715621,0.4646,4653.0,4651.6,2.473]
[1759761715828,2.1494765,4652.3,4651.6,4.873]
[1759761716026,0.4646,4653.0,4651.6,4.873]
[1759761716027,2.14952757,4652.2,4651.6,2.473]
[1759761716236,2.14952757,4652.2,4651.0,2.4048]
[1759761716237,0.21495276,4652.2,4651.7,2.473]
[1759761716528,0.4646,4652.6,4651.7,2.473]
[1759761716718,2.14955876,4652.2,4651.7,2.473]
[1759761716904,2.14963664,4652.0,4651.1,2.15000483]
[1759761717107,0.4646,4652.6,4651.2,2.472]
[1759761717540,0.4646,4653.1,4651.2,4.872]